Workbook

Sheet XLR_NoRangeSheet (hidden)
A5: 4.2, Developer (build 122-D7) | B5: =XLR_ERRNAME -> 
A6: xlrParams | B6: SCBIS | C6: GL_SPECDEP | D6: SPECDEP\sd826 | E6: Минейкин Антон Федорович | F6: 2023-07-31 | G6: 2023-07-31 | H6: \\sdfile\gl\customreports\Инвестиционный портфель фонда 5175-У.xlsm | I6: Инвестиционный портфель НПФ 5175-У | J6: ПН - Сбербанка | K6: Все отделения
A7: Report03 | B7: 4.020169233e+11 | C7: 1.462111921e+10 | D7: 2.306726351e+11 | E7: 102884908388 | F7: 1025725416 | G7: 842046842.9 | H7: 590048657.4 | M7: 2181903766 | N7: 199
A8: Report04 | B8: 7.548353107e+11
A9: Report05 | B9: Состав инвестиционного портфеля фонда по обязательному пенсионному страхованию на 31.07.2023 | C9: 7.548353107e+11
A10: Report28 | B10: Акционерное общество "Негосударственный Пенсионный Фонд Сбербанка"
A11: Report29 | B11: 7.548353107e+11

Sheet Состав портфеля
O1: =XLRPARAMS_FinishDate -> 45138
B2: =Report05_NAME -> Состав инвестиционного портфеля фонда по обязательному пенсионному страхованию на 31.07.2023 | O2: =Report05_TOTAL -> 7.548353107e+11
B3: =Report28_FULLNAME -> Акционерное общество "Негосударственный Пенсионный Фонд Сбербанка"
B5: Наименование актива | C5: ISIN (номер государственной регистрации правил доверительного управления, кадастровый номер) | D5: Полное наименование эмитента (дебитора) | E5: ОГРН | F5: Количество, шт. | G5: Стоимость, руб. | H5: Доля, %
B6: Государственные ценные бумаги Российской Федерации
B7: 24021RMFS | C7: RU000A101CK7 | D7: Министерство финансов Российской Федерации | E7: 1037739085636 | F7: 6667550 | G7: 6685018981 | H7: 0.89
B8: 25084RMFS | C8: RU000A101FA1 | D8: Министерство финансов Российской Федерации | E8: 1037739085636 | F8: 809808 | G8: 820537956 | H8: 0.11
B9: 26207RMFS | C9: RU000A0JS3W6 | D9: Министерство финансов Российской Федерации | E9: 1037739085636 | F9: 3982489 | G9: 4087040960 | H9: 0.54
B10: 26212RMFS | C10: RU000A0JTK38 | D10: Министерство финансов Российской Федерации | E10: 1037739085636 | F10: 9795470 | G10: 9394916192 | H10: 1.24
B11: 26215RMFS | C11: RU000A0JU4L3 | D11: Министерство финансов Российской Федерации | E11: 1037739085636 | F11: 1132175 | G11: 1167589434 | H11: 0.15
B12: 26218RMFS | C12: RU000A0JVW48 | D12: Министерство финансов Российской Федерации | E12: 1037739085636 | F12: 13718556 | G12: 1.485569127e+10 | H12: 1.97
B13: 26219RMFS | C13: RU000A0JWM07 | D13: Министерство финансов Российской Федерации | E13: 1037739085636 | F13: 2754073 | G13: 2792398504 | H13: 0.37
B14: 26221RMFS | C14: RU000A0JXFM1 | D14: Министерство финансов Российской Федерации | E14: 1037739085636 | F14: 32841030 | G14: 3.408946018e+10 | H14: 4.52
B15: 26222RMFS | C15: RU000A0JXQF2 | D15: Министерство финансов Российской Федерации | E15: 1037739085636 | F15: 905329 | G15: 906569300.7 | H15: 0.12
B16: 26223RMFS | C16: RU000A0ZYU88 | D16: Министерство финансов Российской Федерации | E16: 1037739085636 | F16: 15346147 | G16: 1.561645763e+10 | H16: 2.07
B17: 26224RMFS | C17: RU000A0ZYUA9 | D17: Министерство финансов Российской Федерации | E17: 1037739085636 | F17: 3773785 | G17: 3653735449 | H17: 0.48
B18: 26225RMFS | C18: RU000A0ZYUB7 | D18: Министерство финансов Российской Федерации | E18: 1037739085636 | F18: 21799986 | G18: 2.183083163e+10 | H18: 2.89
B19: 26226RMFS | C19: RU000A0ZZYW2 | D19: Министерство финансов Российской Федерации | E19: 1037739085636 | F19: 4331631 | G19: 4363499031 | H19: 0.58
B20: 26227RMFS | C20: RU000A1007F4 | D20: Министерство финансов Российской Федерации | E20: 1037739085636 | F20: 3171677 | G20: 3141609502 | H20: 0.42
B21: 26228RMFS | C21: RU000A100A82 | D21: Министерство финансов Российской Федерации | E21: 1037739085636 | F21: 3043225 | G21: 2715359695 | H21: 0.36
B22: 26229RMFS | C22: RU000A100EG3 | D22: Министерство финансов Российской Федерации | E22: 1037739085636 | F22: 2979784 | G22: 2914208114 | H22: 0.39
B23: 26230RMFS | C23: RU000A100EF5 | D23: Министерство финансов Российской Федерации | E23: 1037739085636 | F23: 2013264 | G23: 2185475572 | H23: 0.29
B24: 26232RMFS | C24: RU000A1014N4 | D24: Министерство финансов Российской Федерации | E24: 1037739085636 | F24: 1498075 | G24: 1333181885 | H24: 0.18
B25: 26233RMFS | C25: RU000A101F94 | D25: Министерство финансов Российской Федерации | E25: 1037739085636 | F25: 7620337 | G25: 6740149239 | H25: 0.89
B26: 26234RMFS | C26: RU000A101QE0 | D26: Министерство финансов Российской Федерации | E26: 1037739085636 | F26: 3236758 | G26: 2977089089 | H26: 0.39
B27: 26235RMFS | C27: RU000A1028E3 | D27: Министерство финансов Российской Федерации | E27: 1037739085636 | F27: 12440366 | G27: 1.067478813e+10 | H27: 1.41
B28: 26236RMFS | C28: RU000A102BT8 | D28: Министерство финансов Российской Федерации | E28: 1037739085636 | F28: 15566505 | G28: 1.326499724e+10 | H28: 1.76
B29: 26237RMFS | C29: RU000A1038Z7 | D29: Министерство финансов Российской Федерации | E29: 1037739085636 | F29: 23562549 | G29: 2.126257091e+10 | H29: 2.82
B30: 26238RMFS | C30: RU000A1038V6 | D30: Министерство финансов Российской Федерации | E30: 1037739085636 | F30: 5781586 | G30: 5222468924 | H30: 0.69
B31: 26239RMFS | C31: RU000A103901 | D31: Министерство финансов Российской Федерации | E31: 1037739085636 | F31: 10296574 | G31: 9267718577 | H31: 1.23
B32: 26240RMFS | C32: RU000A103BR0 | D32: Министерство финансов Российской Федерации | E32: 1037739085636 | F32: 20108873 | G32: 1.623255891e+10 | H32: 2.15
B33: 26241RMFS | C33: RU000A105FZ9 | D33: Министерство финансов Российской Федерации | E33: 1037739085636 | F33: 24101730 | G33: 2.360251249e+10 | H33: 3.13
B34: 26242RMFS | C34: RU000A105RV3 | D34: Министерство финансов Российской Федерации | E34: 1037739085636 | F34: 9955366 | G34: 9911316875 | H34: 1.31
B35: 29006RMFS | C35: RU000A0JV4L2 | D35: Министерство финансов Российской Федерации | E35: 1037739085636 | F35: 2205436 | G35: 2314538919 | H35: 0.31
B36: 29007RMFS | C36: RU000A0JV4M0 | D36: Министерство финансов Российской Федерации | E36: 1037739085636 | F36: 11696125 | G36: 1.244783495e+10 | H36: 1.65
B37: 29008RMFS | C37: RU000A0JV4P3 | D37: Министерство финансов Российской Федерации | E37: 1037739085636 | F37: 54705 | G37: 57913448.25 | H37: 0.01
B38: 29014RMFS | C38: RU000A101N52 | D38: Министерство финансов Российской Федерации | E38: 1037739085636 | F38: 1527977 | G38: 1529611935 | H38: 0.2
B39: 29021RMFS | C39: RU000A105B11 | D39: Министерство финансов Российской Федерации | E39: 1037739085636 | F39: 1452659 | G39: 1438174072 | H39: 0.19
B40: 29022RMFS | C40: RU000A105G16 | D40: Министерство финансов Российской Федерации | E40: 1037739085636 | F40: 1531987 | G40: 1532729309 | H40: 0.2
B41: 29023RMFS | C41: RU000A105L19 | D41: Министерство финансов Российской Федерации | E41: 1037739085636 | F41: 442486 | G41: 439087707.5 | H41: 0.06
B42: 29024RMFS | C42: RU000A1066D5 | D42: Министерство финансов Российской Федерации | E42: 1037739085636 | F42: 2652857 | G42: 2607466617 | H42: 0.35
B43: 52001RMFS | C43: RU000A0JVMH1 | D43: Министерство финансов Российской Федерации | E43: 1037739085636 | F43: 4614839 | G43: 7371698132 | H43: 0.98
B44: 52002RMFS | C44: RU000A0ZYZ26 | D44: Министерство финансов Российской Федерации | E44: 1037739085636 | F44: 69627325 | G44: 9.196681952e+10 | H44: 12.18
B45: 52003RMFS | C45: RU000A102069 | D45: Министерство финансов Российской Федерации | E45: 1037739085636 | F45: 24288315 | G45: 2.860129701e+10 | H45: 3.79
B46: Итого: | G46: =SUM($G$7:$G$45) -> 4.020169233e+11 | H46: =(G46/$O$2) *100 -> 53.25889205
B47: Государственные ценные бумаги субъектов Российской Федерации
B48: RU25072MOS0 | C48: RU000A1030S9 | D48: Правительство Москвы в лице Департамента финансов города Москвы | E48: 1027700505348 | F48: 592773 | G48: 597343279.8 | H48: 0.08
B49: RU25073MOS0 | C49: RU000A1030T7 | D49: Правительство Москвы в лице Департамента финансов города Москвы | E49: 1027700505348 | F49: 1297799 | G49: 1317025562 | H49: 0.17
B50: RU26074MOS0 | C50: RU000A1033Z8 | D50: Правительство Москвы в лице Департамента финансов города Москвы | E50: 1027700505348 | F50: 2343861 | G50: 2133851054 | H50: 0.28
B51: RU34010SVS0 | C51: RU000A102DQ0 | D51: Министерство финансов Свердловской области | E51: 1026605256589 | F51: 707490 | G51: 500683631.6 | H51: 0.07
B52: RU34012BAS0 | C52: RU000A103DN5 | D52: Министерство финансов Республики Башкортостан | E52: 1030203917622 | F52: 616690 | G52: 612656363 | H52: 0.08
B53: RU34012LIP0 | C53: RU000A102598 | D53: Управление финансов Липецкой области | E53: 1024840836217 | F53: 550000 | G53: 332142537.6 | H53: 0.04
B54: RU34016BEL0 | C54: RU000A1025F6 | D54: Правительство Белгородской области | E54: 1023101674650 | F54: 500000 | G54: 221342806.8 | H54: 0.03
B55: RU35003GSP0 | C55: RU000A102A15 | D55: Комитет финансов Санкт-Петербурга | E55: 1027810256352 | F55: 452500 | G55: 428398040 | H55: 0.06
B56: RU35004OMS0 | C56: RU000A102DR8 | D56: Министерство финансов Омской области | E56: 1045504005414 | F56: 1240864 | G56: 1170512595 | H56: 0.16
B57: RU35004STV0 | C57: RU000A102H34 | D57: Министерство финансов Ставропольского края | E57: 1022601983337 | F57: 853020 | G57: 860004331 | H57: 0.11
B58: RU35008SVS0 | C58: RU000A101Z17 | D58: Министерство финансов Свердловской области | E58: 1026605256589 | F58: 933130 | G58: 933826600.4 | H58: 0.12
B59: RU35009SVS0 | C59: RU000A102CT6 | D59: Министерство финансов Свердловской области | E59: 1026605256589 | F59: 373650 | G59: 378483709 | H59: 0.05
B60: RU35010RSY0 | C60: RU000A0ZZ7E6 | D60: Министерство финансов Республики Саха (Якутия) | E60: 1031402066079 | F60: 11 | G60: 6605.94 | H60: 0
B61: RU35015MOO0 | C61: RU000A102CR0 | D61: Министерство экономики и финансов Московской области | E61: 1025002870837 | F61: 226950 | G61: 213693918.6 | H61: 0.03
B62: RU35015NJG0 | C62: RU000A102DS6 | D62: Министерство финансов Нижегородской области | E62: 1025203044426 | F62: 1899250 | G62: 1921284089 | H62: 0.25
B63: RU35016MOO0 | C63: RU000A102G35 | D63: Министерство экономики и финансов Московской области | E63: 1025002870837 | F63: 1386000 | G63: 981870120 | H63: 0.13
B64: RU35016NJG0 | C64: RU000A1043K9 | D64: Министерство финансов Нижегородской области | E64: 1025203044426 | F64: 1497000 | G64: 1493086323 | H64: 0.2
B65: RU35018YRS0 | C65: RU000A101WD0 | D65: департамент финансов Ярославской области | E65: 1027600695363 | F65: 478200 | G65: 362526741.4 | H65: 0.05
B66: RU35022ANO0 | C66: RU000A1043E2 | D66: Министерство финансов и налоговой политики Новосибирской области | E66: 1105476023223 | F66: 162002 | G66: 162380898.9 | H66: 0.02
B67: Итого: | G67: =SUM($G$48:$G$66) -> 1.462111921e+10 | H67: =(G67/$O$2) *100 -> 1.9369946
B68: Муниципальные облигации
B69: Итого: | H69: =(G69/$O$2) *100 -> 0
B70: Облигации российских эмитентов
B71: 4-03-65045-D-001P | C71: RU000A102564 | D71: открытое акционерное общество "Российские железные дороги" | E71: 1037739877295 | F71: 3500000 | G71: 3710413700 | H71: 0.49
B72: 4-11-36400-R | C72: RU000A106375 | D72: ОБЩЕСТВО С ОГРАНИЧЕННОЙ ОТВЕТСТВЕННОСТЬЮ "ГАЗПРОМ КАПИТАЛ" | E72: 1087746212388 | F72: 970000 | G72: 1003421156 | H72: 0.13
B73: 4-22-65018-D | C73: RU000A0JSQ58 | D73: ПУБЛИЧНОЕ АКЦИОНЕРНОЕ ОБЩЕСТВО "ФЕДЕРАЛЬНАЯ СЕТЕВАЯ КОМПАНИЯ - РОССЕТИ" | E73: 1024701893336 | F73: 2600000 | G73: 2606656000 | H73: 0.35
B74: 4-23-00004-T | C74: RU000A0JT403 | D74: государственная корпорация развития "ВЭБ.РФ" | E74: 1077711000102 | F74: 420090 | G74: 423969615.2 | H74: 0.06
B75: 4-23-65045-D | C75: RU000A0JQRD9 | D75: открытое акционерное общество "Российские железные дороги" | E75: 1037739877295 | F75: 400000 | G75: 403879383.1 | H75: 0.05
B76: 4-24-00004-T | C76: RU000A0JT6B2 | D76: государственная корпорация развития "ВЭБ.РФ" | E76: 1077711000102 | F76: 395730 | G76: 401416640.1 | H76: 0.05
B77: 4-32-65045-D | C77: RU000A0JSGV0 | D77: открытое акционерное общество "Российские железные дороги" | E77: 1037739877295 | F77: 450600 | G77: 454155833.3 | H77: 0.06
B78: 4-42-65045-D | C78: RU000A0JWLU4 | D78: открытое акционерное общество "Российские железные дороги" | E78: 1037739877295 | F78: 15000000 | G78: 1.51628939e+10 | H78: 2.01
B79: 4B02-01-00008-T-001P | C79: RU000A1029A9 | D79: ФЕДЕРАЛЬНОЕ ГОСУДАРСТВЕННОЕ УНИТАРНОЕ ПРЕДПРИЯТИЕ "РОСМОРПОРТ" | E79: 1037702023831 | F79: 572000 | G79: 420574497.2 | H79: 0.06
B80: 4B02-01-00013-A-001P | C80: RU000A0JX2P5 | D80: Публичное акционерное общество "Акционерная нефтяная Компания "Башнефть" | E80: 1020202555240 | F80: 9700000 | G80: 9814555382 | H80: 1.3
B81: 4B02-01-00124-A-001P | C81: RU000A0JWTN2 | D81: ПУБЛИЧНОЕ АКЦИОНЕРНОЕ ОБЩЕСТВО "РОСТЕЛЕКОМ" | E81: 1027700198767 | F81: 10001 | G81: 10080545.95 | H81: 0
B82: 4B02-01-00124-A-002P | C82: RU000A101541 | D82: ПУБЛИЧНОЕ АКЦИОНЕРНОЕ ОБЩЕСТВО "РОСТЕЛЕКОМ" | E82: 1027700198767 | F82: 192 | G82: 182344.32 | H82: 0
B83: 4B02-01-36241-R-002P | C83: RU000A103N76 | D83: Общество с ограниченной ответственностью "ИКС 5 ФИНАНС" | E83: 1067761792053 | F83: 8996 | G83: 9140353.59 | H83: 0
B84: 4B02-01-36400-R | C84: RU000A0ZYUV5 | D84: ОБЩЕСТВО С ОГРАНИЧЕННОЙ ОТВЕТСТВЕННОСТЬЮ "ГАЗПРОМ КАПИТАЛ" | E84: 1087746212388 | F84: 2548242 | G84: 2555479007 | H84: 0.34
B85: 4B02-01-55192-E-001P | C85: RU000A100XC2 | D85: Публичное акционерное общество "Полюс" | E85: 1068400002990 | F85: 649735 | G85: 651436123.2 | H85: 0.09
B86: 4B02-01-55319-E-001P | C86: RU000A103AT8 | D86: акционерное общество "Атомный энергопромышленный комплекс" | E86: 1077758081664 | F86: 3450000 | G86: 3418943410 | H86: 0.45
B87: 4B02-01-65045-D-001P | C87: RU000A0JXN05 | D87: открытое акционерное общество "Российские железные дороги" | E87: 1037739877295 | F87: 382781 | G87: 386668879.8 | H87: 0.05
B88: 4B02-02-00124-A-001P | C88: RU000A0JXPN8 | D88: ПУБЛИЧНОЕ АКЦИОНЕРНОЕ ОБЩЕСТВО "РОСТЕЛЕКОМ" | E88: 1027700198767 | F88: 340402 | G88: 349363433.3 | H88: 0.05
B89: 4B02-02-00146-A-001P | C89: RU000A0JXYL4 | D89: Публичное акционерное общество "Газпром нефть" | E89: 1025501701686 | F89: 15000000 | G89: 1.561413163e+10 | H89: 2.07
B90: 4B02-02-01481-B-002P | C90: RU000A1069P3 | D90: Публичное акционерное общество "Сбербанк России" | E90: 1027700132195 | F90: 1950000 | G90: 1951229280 | H90: 0.26
B91: 4B02-02-04715-A | C91: RU000A0JWRV9 | D91: Публичное акционерное общество "Мобильные ТелеСистемы" | E91: 1027700149124 | F91: 50 | G91: 47310.37 | H91: 0
B92: 4B02-02-36241-R-002P | C92: RU000A105JP2 | D92: Общество с ограниченной ответственностью "ИКС 5 ФИНАНС" | E92: 1067761792053 | F92: 2370351 | G92: 2396088793 | H92: 0.32
B93: 4B02-02-36400-R | C93: RU000A0ZYUW3 | D93: ОБЩЕСТВО С ОГРАНИЧЕННОЙ ОТВЕТСТВЕННОСТЬЮ "ГАЗПРОМ КАПИТАЛ" | E93: 1087746212388 | F93: 2218171 | G93: 2216190173 | H93: 0.29
B94: 4B02-02-36400-R-001P | C94: RU000A100LL8 | D94: ОБЩЕСТВО С ОГРАНИЧЕННОЙ ОТВЕТСТВЕННОСТЬЮ "ГАЗПРОМ КАПИТАЛ" | E94: 1087746212388 | F94: 1500000 | G94: 1505733646 | H94: 0.2
B95: 4B02-02-36527-R-001P | C95: RU000A104362 | D95: ОБЩЕСТВО С ОГРАНИЧЕННОЙ ОТВЕТСТВЕННОСТЬЮ "ВОСТОЧНАЯ СТИВИДОРНАЯ КОМПАНИЯ" | E95: 1042501609039 | F95: 293000 | G95: 291797791.7 | H95: 0.04
B96: 4B02-02-40155-F-001P | C96: RU000A105A61 | D96: Публичное акционерное общество "Горно-металлургическая компания "Норильский никель" | E96: 1028400000298 | F96: 2896634 | G96: 2990195278 | H96: 0.4
B97: 4B02-02-55319-E-001P | C97: RU000A105K85 | D97: акционерное общество "Атомный энергопромышленный комплекс" | E97: 1077758081664 | F97: 2039400 | G97: 2048584805 | H97: 0.27
B98: 4B02-02-55385-E-001P | C98: RU000A101MG4 | D98: ПУБЛИЧНОЕ АКЦИОНЕРНОЕ ОБЩЕСТВО "ФЕДЕРАЛЬНАЯ СЕТЕВАЯ КОМПАНИЯ - РОССЕТИ" | E98: 1024701893336 | F98: 4800000 | G98: 4767055182 | H98: 0.63
B99: 4B02-02-60525-P-004P | C99: RU000A105TP1 | D99: Публичное акционерное общество "Магнит" | E99: 1032304945947 | F99: 3288784 | G99: 3235166297 | H99: 0.43
B100: 4B02-02-65045-D | C100: RU000A0JVW71 | D100: открытое акционерное общество "Российские железные дороги" | E100: 1037739877295 | F100: 5271905 | G100: 5429060488 | H100: 0.72
B101: 4B02-02-65045-D-001P | C101: RU000A0JXQ44 | D101: открытое акционерное общество "Российские железные дороги" | E101: 1037739877295 | F101: 776721 | G101: 774150869 | H101: 0.1
B102: 4B02-03-00013-A-001P | C102: RU000A0JX9X4 | D102: Публичное акционерное общество "Акционерная нефтяная Компания "Башнефть" | E102: 1020202555240 | F102: 5000000 | G102: 5008902909 | H102: 0.66
B103: 4B02-03-00122-A | C103: RU000A0JV1X3 | D103: публичное акционерное общество "Нефтяная компания "Роснефть" | E103: 1027700043502 | F103: 1669896 | G103: 1706565096 | H103: 0.23
B104: 4B02-03-00122-A-001P | C104: RU000A0JX413 | D104: публичное акционерное общество "Нефтяная компания "Роснефть" | E104: 1027700043502 | F104: 20000000 | G104: 2.020092516e+10 | H104: 2.68
B105: 4B02-03-00124-A-001P | C105: RU000A0ZYG52 | D105: ПУБЛИЧНОЕ АКЦИОНЕРНОЕ ОБЩЕСТВО "РОСТЕЛЕКОМ" | E105: 1027700198767 | F105: 26994 | G105: 27273657.84 | H105: 0
B106: 4B02-03-25642-H | C106: RU000A100YF3 | D106: Акционерное общество "Холдинговая компания "МЕТАЛЛОИНВЕСТ" | E106: 1027700006289 | F106: 1 | G106: 982.64 | H106: 0
B107: 4B02-03-36400-R | C107: RU000A0ZYUY9 | D107: ОБЩЕСТВО С ОГРАНИЧЕННОЙ ОТВЕТСТВЕННОСТЬЮ "ГАЗПРОМ КАПИТАЛ" | E107: 1087746212388 | F107: 45259 | G107: 45269238.49 | H107: 0.01
B108: 4B02-03-55192-E-001P | C108: RU000A105VC5 | D108: Публичное акционерное общество "Полюс" | E108: 1068400002990 | F108: 200700 | G108: 211624101 | H108: 0.03
B109: 4B02-03-65018-D-001P | C109: RU000A1036S6 | D109: ПУБЛИЧНОЕ АКЦИОНЕРНОЕ ОБЩЕСТВО "ФЕДЕРАЛЬНАЯ СЕТЕВАЯ КОМПАНИЯ - РОССЕТИ" | E109: 1024701893336 | F109: 2500000 | G109: 2527999260 | H109: 0.33
B110: 4B02-03-65045-D-001P | C110: RU000A0JXR84 | D110: открытое акционерное общество "Российские железные дороги" | E110: 1037739877295 | F110: 7500000 | G110: 7501352250 | H110: 0.99
B111: 4B02-03-65134-D | C111: RU000A103DS4 | D111: Публичное акционерное общество "СИБУР Холдинг" | E111: 1057747421247 | F111: 1791525 | G111: 1785410897 | H111: 0.24
B112: 4B02-04-03470-B-001P | C112: RU000A1026V1 | D112: Акционерное общество "Тойота Банк" | E112: 1077711000058 | F112: 632000 | G112: 643487576.1 | H112: 0.09
B113: 4B02-04-36400-R | C113: RU000A0ZYV04 | D113: ОБЩЕСТВО С ОГРАНИЧЕННОЙ ОТВЕТСТВЕННОСТЬЮ "ГАЗПРОМ КАПИТАЛ" | E113: 1087746212388 | F113: 14060 | G113: 14084464.4 | H113: 0
B114: 4B02-04-36400-R-001P | C114: RU000A101QN1 | D114: ОБЩЕСТВО С ОГРАНИЧЕННОЙ ОТВЕТСТВЕННОСТЬЮ "ГАЗПРОМ КАПИТАЛ" | E114: 1087746212388 | F114: 5000000 | G114: 5050200021 | H114: 0.67
B115: 4B02-04-60525-P-002P | C115: RU000A1036H9 | D115: Публичное акционерное общество "Магнит" | E115: 1032304945947 | F115: 500000 | G115: 497090000 | H115: 0.07
B116: 4B02-04-65018-D | C116: RU000A0ZYJ91 | D116: ПУБЛИЧНОЕ АКЦИОНЕРНОЕ ОБЩЕСТВО "ФЕДЕРАЛЬНАЯ СЕТЕВАЯ КОМПАНИЯ - РОССЕТИ" | E116: 1024701893336 | F116: 190778 | G116: 192952478.1 | H116: 0.03
B117: 4B02-04-65045-D-001P | C117: RU000A0JXZB2 | D117: открытое акционерное общество "Российские железные дороги" | E117: 1037739877295 | F117: 1254996 | G117: 1278485923 | H117: 0.17
B118: 4B02-05-00122-A-002P | C118: RU000A0ZYVU5 | D118: публичное акционерное общество "Нефтяная компания "Роснефть" | E118: 1027700043502 | F118: 99689 | G118: 102081536 | H118: 0.01
B119: 4B02-05-00146-A-001P | C119: RU000A0ZYLQ4 | D119: Публичное акционерное общество "Газпром нефть" | E119: 1025501701686 | F119: 500000 | G119: 494180150 | H119: 0.07
B120: 4B02-05-00206-A-001P | C120: RU000A0JXC24 | D120: Публичное акционерное общество "Транснефть" | E120: 1027700049486 | F120: 1262450 | G120: 1266818077 | H120: 0.17
B121: 4B02-05-36400-R-001P | C121: RU000A106672 | D121: ОБЩЕСТВО С ОГРАНИЧЕННОЙ ОТВЕТСТВЕННОСТЬЮ "ГАЗПРОМ КАПИТАЛ" | E121: 1087746212388 | F121: 736188 | G121: 735453662.2 | H121: 0.1
B122: 4B02-05-60525-P-001P | C122: RU000A1036M9 | D122: Публичное акционерное общество "Магнит" | E122: 1032304945947 | F122: 204986 | G122: 204059463.3 | H122: 0.03
B123: 4B02-05-65018-D-001P | C123: RU000A101LX1 | D123: ПУБЛИЧНОЕ АКЦИОНЕРНОЕ ОБЩЕСТВО "ФЕДЕРАЛЬНАЯ СЕТЕВАЯ КОМПАНИЯ - РОССЕТИ" | E123: 1024701893336 | F123: 4800000 | G123: 4768708999 | H123: 0.63
B124: 4B02-05-65045-D | C124: RU000A0JWD57 | D124: открытое акционерное общество "Российские железные дороги" | E124: 1037739877295 | F124: 10000000 | G124: 1.029089934e+10 | H124: 1.36
B125: 4B02-05-65116-D | C125: RU000A0JWJX2 | D125: Публичное акционерное общество "Россети Московский регион" | E125: 1057746555811 | F125: 5000000 | G125: 5070263853 | H125: 0.67
B126: 4B02-06-00124-A-001P | C126: RU000A105LC6 | D126: ПУБЛИЧНОЕ АКЦИОНЕРНОЕ ОБЩЕСТВО "РОСТЕЛЕКОМ" | E126: 1027700198767 | F126: 700000 | G126: 703297350 | H126: 0.09
B127: 4B02-06-00124-A-002P | C127: RU000A103EZ7 | D127: ПУБЛИЧНОЕ АКЦИОНЕРНОЕ ОБЩЕСТВО "РОСТЕЛЕКОМ" | E127: 1027700198767 | F127: 792120 | G127: 768766148.5 | H127: 0.1
B128: 4B02-06-00296-A-001P | C128: RU000A101GZ6 | D128: Публичное акционерное общество "Уралкалий" | E128: 1025901702188 | F128: 256903 | G128: 253951184.5 | H128: 0.03
B129: 4B02-06-35992-H-001P | C129: RU000A1038D4 | D129: акционерное общество "Трансмашхолдинг" | E129: 1027739893246 | F129: 950000 | G129: 890681145 | H129: 0.12
B130: 4B02-06-36393-R-001P | C130: RU000A102986 | D130: Общество с ограниченной ответственностью "СУЭК-Финанс" | E130: 1107746282687 | F130: 3000000 | G130: 3055936019 | H130: 0.4
B131: 4B02-06-36400-R-001P | C131: RU000A106AT1 | D131: ОБЩЕСТВО С ОГРАНИЧЕННОЙ ОТВЕТСТВЕННОСТЬЮ "ГАЗПРОМ КАПИТАЛ" | E131: 1087746212388 | F131: 998145 | G131: 1001701191 | H131: 0.13
B132: 4B02-06-55038-E-001P | C132: RU000A1057P8 | D132: Публичное акционерное общество "Федеральная гидрогенерирующая компания - РусГидро" | E132: 1042401810494 | F132: 565050 | G132: 561682302 | H132: 0.07
B133: 4B02-06-65018-D | C133: RU000A105DN0 | D133: ПУБЛИЧНОЕ АКЦИОНЕРНОЕ ОБЩЕСТВО "ФЕДЕРАЛЬНАЯ СЕТЕВАЯ КОМПАНИЯ - РОССЕТИ" | E133: 1024701893336 | F133: 2708220 | G133: 2732618013 | H133: 0.36
B134: 4B02-06-65018-D-001P | C134: RU000A105559 | D134: ПУБЛИЧНОЕ АКЦИОНЕРНОЕ ОБЩЕСТВО "ФЕДЕРАЛЬНАЯ СЕТЕВАЯ КОМПАНИЯ - РОССЕТИ" | E134: 1024701893336 | F134: 796400 | G134: 780646156.8 | H134: 0.1
B135: 4B02-07-00028-A | C135: RU000A0ZZER4 | D135: Публичное акционерное общество "Газпром" | E135: 1027700070518 | F135: 10000000 | G135: 1.001694615e+10 | H135: 1.33
B136: 4B02-07-00206-A | C136: RU000A0JXPK4 | D136: Публичное акционерное общество "Транснефть" | E136: 1027700049486 | F136: 12000000 | G136: 1.229438193e+10 | H136: 1.63
B137: 4B02-07-35992-H-001P | C137: RU000A106CU5 | D137: акционерное общество "Трансмашхолдинг" | E137: 1027739893246 | F137: 563105 | G137: 568865564.1 | H137: 0.08
B138: 4B02-07-55038-E-001P | C138: RU000A105HC4 | D138: Публичное акционерное общество "Федеральная гидрогенерирующая компания - РусГидро" | E138: 1042401810494 | F138: 200000 | G138: 200123920 | H138: 0.03
B139: 4B02-08-00122-A-002P | C139: RU000A100KY3 | D139: публичное акционерное общество "Нефтяная компания "Роснефть" | E139: 1027700043502 | F139: 6563414 | G139: 6593881416 | H139: 0.87
B140: 4B02-08-00124-A-002P | C140: RU000A104VS4 | D140: ПУБЛИЧНОЕ АКЦИОНЕРНОЕ ОБЩЕСТВО "РОСТЕЛЕКОМ" | E140: 1027700198767 | F140: 442691 | G140: 449069345.9 | H140: 0.06
B141: 4B02-08-31153-H-001P | C141: RU000A101LJ0 | D141: Акционерное общество "Минерально-химическая компания "ЕвроХим" | E141: 1027700002659 | F141: 2125979 | G141: 2159487119 | H141: 0.29
B142: 4B02-09-00122-A | C142: RU000A0JV219 | D142: публичное акционерное общество "Нефтяная компания "Роснефть" | E142: 1027700043502 | F142: 1305211 | G142: 1328786139 | H142: 0.18
B143: 4B02-09-00124-A-002P | C143: RU000A1051E5 | D143: ПУБЛИЧНОЕ АКЦИОНЕРНОЕ ОБЩЕСТВО "РОСТЕЛЕКОМ" | E143: 1027700198767 | F143: 712000 | G143: 729656774.1 | H143: 0.1
B144: 4B02-09-04715-A-001P | C144: RU000A100A66 | D144: Публичное акционерное общество "Мобильные ТелеСистемы" | E144: 1027700149124 | F144: 145 | G144: 144949.25 | H144: 0
B145: 4B02-09-40155-F | C145: RU000A1069N8 | D145: Публичное акционерное общество "Горно-металлургическая компания "Норильский никель" | E145: 1028400000298 | F145: 3275000 | G145: 3340008750 | H145: 0.44
B146: 4B02-09-55038-E-001P | C146: RU000A105SL2 | D146: Публичное акционерное общество "Федеральная гидрогенерирующая компания - РусГидро" | E146: 1042401810494 | F146: 2925112 | G146: 3017293687 | H146: 0.4
B147: 4B02-10-00013-A | C147: RU000A0JX2Q3 | D147: Публичное акционерное общество "Акционерная нефтяная Компания "Башнефть" | E147: 1020202555240 | F147: 5000000 | G147: 5059871375 | H147: 0.67
B148: 4B02-10-00122-A-002P | C148: RU000A101SF3 | D148: публичное акционерное общество "Нефтяная компания "Роснефть" | E148: 1027700043502 | F148: 1004 | G148: 950731.88 | H148: 0
B149: 4B02-10-04715-A-001P | C149: RU000A100HU7 | D149: Публичное акционерное общество "Мобильные ТелеСистемы" | E149: 1027700149124 | F149: 11230 | G149: 11104799.2 | H149: 0
B150: 4B02-10-25642-H | C150: RU000A101R90 | D150: Акционерное общество "Холдинговая компания "МЕТАЛЛОИНВЕСТ" | E150: 1027700006289 | F150: 15 | G150: 14166.53 | H150: 0
B151: 4B02-10-55038-E-001P | C151: RU000A106037 | D151: Публичное акционерное общество "Федеральная гидрогенерирующая компания - РусГидро" | E151: 1042401810494 | F151: 48220 | G151: 49827920.01 | H151: 0.01
B152: 4B02-13-65045-D-001P | C152: RU000A1007Z2 | D152: открытое акционерное общество "Российские железные дороги" | E152: 1037739877295 | F152: 8800000 | G152: 9530834335 | H152: 1.26
B153: 4B02-15-65045-D-001P | C153: RU000A1009L8 | D153: открытое акционерное общество "Российские железные дороги" | E153: 1037739877295 | F153: 3500000 | G153: 3827576027 | H153: 0.51
B154: 4B02-20-04715-A-001P | C154: RU000A104SU6 | D154: Публичное акционерное общество "Мобильные ТелеСистемы" | E154: 1027700149124 | F154: 4159 | G154: 4489058.24 | H154: 0
B155: 4B02-20-65045-D-001P | C155: RU000A101M04 | D155: открытое акционерное общество "Российские железные дороги" | E155: 1037739877295 | F155: 900000 | G155: 918295722.3 | H155: 0.12
B156: 4B02-21-04715-A-001P | C156: RU000A104WJ1 | D156: Публичное акционерное общество "Мобильные ТелеСистемы" | E156: 1027700149124 | F156: 147860 | G156: 149212919 | H156: 0.02
B157: 4B02-22-04715-A-001P | C157: RU000A1051T3 | D157: Публичное акционерное общество "Мобильные ТелеСистемы" | E157: 1027700149124 | F157: 264000 | G157: 268086720 | H157: 0.04
B158: 4B02-26-65045-D-001P | C158: RU000A106K43 | D158: открытое акционерное общество "Российские железные дороги" | E158: 1037739877295 | F158: 1680560 | G158: 1698205880 | H158: 0.22
B159: 4B02-500-01481-B-001P | C159: RU000A103WV8 | D159: Публичное акционерное общество "Сбербанк России" | E159: 1027700132195 | F159: 335000 | G159: 340594500 | H159: 0.05
B160: 4B02-563-01481-B-001P | C160: RU000A105666 | D160: Публичное акционерное общество "Сбербанк России" | E160: 1027700132195 | F160: 725702 | G160: 736463652.7 | H160: 0.1
B161: 4B0221801481B001P | C161: RU000A101C89 | D161: Публичное акционерное общество "Сбербанк России" | E161: 1027700132195 | F161: 2000000 | G161: 2002431223 | H161: 0.27
B162: Итого: | G162: =SUM($G$71:$G$161) -> 2.306726351e+11 | H162: =(G162/$O$2) *100 -> 30.55933286
B163: Акции
B164: 1-01-00077-A | C164: RU0009024277 | D164: Публичное акционерное общество "Нефтяная компания "ЛУКОЙЛ" | E164: 1027700035769 | F164: 2134858 | G164: 12689595952 | H164: 1.68
B165: 1-01-00102-A | C165: RU0009046452 | D165: ПУБЛИЧНОЕ АКЦИОНЕРНОЕ ОБЩЕСТВО "НОВОЛИПЕЦКИЙ МЕТАЛЛУРГИЧЕСКИЙ КОМБИНАТ" | E165: 1024800823123 | F165: 15990480 | G165: 3352883846 | H165: 0.44
B166: 1-01-00124-A | C166: RU0008943394 | D166: ПУБЛИЧНОЕ АКЦИОНЕРНОЕ ОБЩЕСТВО "РОСТЕЛЕКОМ" | E166: 1027700198767 | F166: 9776660 | G166: 728067870.2 | H166: 0.1
B167: 1-01-00155-A | C167: RU0008926258 | D167: Публичное акционерное общество "Сургутнефтегаз" | E167: 1028600584540 | F167: 20087500 | G167: 592279937.5 | H167: 0.08
B168: 1-01-04715-A | C168: RU0007775219 | D168: Публичное акционерное общество "Мобильные ТелеСистемы" | E168: 1027700149124 | F168: 11391530 | G168: 3301550182 | H168: 0.44
B169: 1-01-40155-F | C169: RU0007288411 | D169: Публичное акционерное общество "Горно-металлургическая компания "Норильский никель" | E169: 1028400000298 | F169: 642226 | G169: 10680218380 | H169: 1.41
B170: 1-01-55038-E | C170: RU000A0JPKH7 | D170: Публичное акционерное общество "Федеральная гидрогенерирующая компания - РусГидро" | E170: 1042401810494 | F170: 1647548000 | G170: 1395473156 | H170: 0.18
B171: 1-01-55192-E | C171: RU000A0JNAA8 | D171: Публичное акционерное общество "Полюс" | E171: 1068400002990 | F171: 649256 | G171: 7715758304 | H171: 1.02
B172: 1-01-60525-P | C172: RU000A0JKQU8 | D172: Публичное акционерное общество "Магнит" | E172: 1032304945947 | F172: 1332945 | G172: 7715418896 | H172: 1.02
B173: 1-01-65018-D | C173: RU000A0JPNN9 | D173: ПУБЛИЧНОЕ АКЦИОНЕРНОЕ ОБЩЕСТВО "ФЕДЕРАЛЬНАЯ СЕТЕВАЯ КОМПАНИЯ - РОССЕТИ" | E173: 1024701893336 | F173: 7694117815 | G173: 932219314.5 | H173: 0.12
B174: 1-02-00028-A | C174: RU0007661625 | D174: Публичное акционерное общество "Газпром" | E174: 1027700070518 | F174: 17685750 | G174: 3068654482 | H174: 0.41
B175: 1-02-00122-A | C175: RU000A0J2Q06 | D175: публичное акционерное общество "Нефтяная компания "Роснефть" | E175: 1027700043502 | F175: 7055806 | G175: 3590699673 | H175: 0.48
B176: 1-02-00143-A | C176: RU0009046510 | D176: Публичное акционерное общество "Северсталь" | E176: 1023501236901 | F176: 7992067 | G176: 1.083884127e+10 | H176: 1.44
B177: 1-02-00268-E | C177: RU000A0DKVS5 | D177: публичное акционерное общество "НОВАТЭК" | E177: 1026303117642 | F177: 2445389 | G177: 3707698802 | H177: 0.49
B178: 1-02-06556-A | C178: RU000A0JRKT8 | D178: Публичное акционерное общество "ФосАгро" | E178: 1027700190572 | F178: 76970 | G178: 580353800 | H178: 0.08
B179: 1-02-65104-D | C179: RU000A0JNGA5 | D179: Публичное акционерное общество "Юнипро" | E179: 1058602056985 | F179: 112996000 | G179: 235709656 | H179: 0.03
B180: 1-03-00078-A | C180: RU0009084396 | D180: ПУБЛИЧНОЕ АКЦИОНЕРНОЕ ОБЩЕСТВО "МАГНИТОГОРСКИЙ МЕТАЛЛУРГИЧЕСКИЙ КОМБИНАТ" | E180: 1027402166835 | F180: 111087370 | G180: 5908181773 | H180: 0.78
B181: 1-03-00161-A | C181: RU0009033591 | D181: публичное акционерное общество "Татнефть" имени В.Д. Шашина | E181: 1021601623702 | F181: 3715735 | G181: 1935340575 | H181: 0.26
B182: 1-03-40046-N | C182: RU0007252813 | D182: Акционерная компания "АЛРОСА" (публичное акционерное общество) | E182: 1021400967092 | F182: 34446890 | G182: 2931085870 | H182: 0.39
B183: 1-04-33498-E | C183: RU000A0JPNM1 | D183: ПУБЛИЧНОЕ АКЦИОНЕРНОЕ ОБЩЕСТВО "ИНТЕР РАО ЕЭС" | E183: 1022302933630 | F183: 749742800 | G183: 3115031385 | H183: 0.41
B184: 1-05-01669-A | C184: RU000A0DQZE3 | D184: Публичное акционерное общество "Акционерная финансовая корпорация "Система" | E184: 1027700003891 | F184: 19305100 | G184: 362742829 | H184: 0.05
B185: 1-05-08443-H | C185: RU000A0JR4A1 | D185: Публичное акционерное общество "Московская Биржа ММВБ-РТС" | E185: 1027739387411 | F185: 6004360 | G185: 797979444 | H185: 0.11
B186: 10301481B | C186: RU0009029540 | D186: Публичное акционерное общество "Сбербанк России" | E186: 1027700132195 | F186: 44031630 | G186: 1.164592582e+10 | H186: 1.54
B187: 10401000B | C187: RU000A0JP5V6 | D187: Банк ВТБ (публичное акционерное общество) | E187: 1027739609391 | F187: 2311960000 | G187: 59498290.6 | H187: 0.01
B188: 2-01-00155-A | C188: RU0009029524 | D188: Публичное акционерное общество "Сургутнефтегаз" | E188: 1028600584540 | F188: 41255500 | G188: 1921887468 | H188: 0.25
B189: 2-01-00206-A | C189: RU0009091573 | D189: Публичное акционерное общество "Транснефть" | E189: 1027700049486 | F189: 8558 | G189: 1043648100 | H189: 0.14
B190: 2-03-00161-A | C190: RU0006944147 | D190: публичное акционерное общество "Татнефть" имени В.Д. Шашина | E190: 1021601623702 | F190: 2389392 | G190: 1229820062 | H190: 0.16
B191: 20301481B | C191: RU0009029557 | D191: Публичное акционерное общество "Сбербанк России" | E191: 1027700132195 | F191: 3072030 | G191: 808343253.9 | H191: 0.11
B192: Итого: | G192: =SUM($G$164:$G$191) -> 102884908388 | H192: =(G192/$O$2) *100 -> 13.63011334
B193: Паи паевых инвестиционных фондов, в том числе паи (акции, доли) иностранных индексных инвестиционных фондов
B194: Биржевой паевой инвестиционный фонд рыночных финансовых инструментов "Первая - Фонд Ответственные инвестиции" | C194: 4162 | D194: Акционерное общество "Управляющая компания "Первая" | E194: 1027739007570 | F194: 78061295 | G194: 1025725416 | H194: 0.14
B195: Итого: | G195: =SUM($G$194) -> 1025725416 | H195: =(G195/$O$2) *100 -> 0.1358873123
B196: Ипотечные ценные бумаги, выпущенные в соответствии с законодательством Российской Федерации об ипотечных ценных бумагах
B197: 4-18-00307-R-002P | C197: RU000A102D46 | D197: Общество с ограниченной ответственностью "ДОМ.РФ Ипотечный агент" | E197: 1167746438881 | F197: 1943835 | G197: 842046842.9 | H197: 0.11
B198: Итого: | G198: =SUM($G$197) -> 842046842.9 | H198: =(G198/$O$2) *100 -> 0.1115537166
B199: Ценные бумаги международных финансовых организаций
B200: Итого: | H200: =(G200/$O$2) *100 -> 0
B201: Облигации иностранных эмитентов
... 59 more rows
